Cogmind - Beta 9.4 @@@ ROGUE MODE // 2020.01.15 @ 01:31:13 // Winter2019/RPGLIKE Player: PyroDawn Result: Destroyed by 8R-AWN with 8R-AWN's Boregun Performance ------------- Evolutions (0) 0 Regions Visited (3) 600 Robots Destroyed (37) 185 Value Destroyed (809) 809 Prototype IDs (3) 60 Alien Tech Used (0) 0 Bonus (487) 487 TOTAL SCORE: 2141 Bonus ------- High Alert Combat Kills 62 Follower Combat Kills 180 Aligned with FarCom 300 Friendly Fire -55 Cogmind --------- Core Integrity 0/600 Matter 160/300 Energy 160/160 System Corruption 0% Temperature Cool (0) Movement Flying (40) Location -10/Exiles Parts ------- > --- POWER (1) -------- Light Nuclear Core > --- PROPULSION (1) --- Flight Unit > --- UTILITY (3) ------ Modified TNC 0b10 Alert Chip PSU Rigger > --- WEAPON (2) ------- Mace > --- INVENTORY (3) ---- Protomatter-2 Experimental Sensor Array Hacking Suite Peak State ------------ > --- POWER ------------ Light Nuclear Core > --- PROPULSION ------- Flight Unit > --- UTILITY ---------- Modified TNC 0b10 Alert Chip PSU Rigger > --- WEAPON ----------- Grenade Launcher Mace > --- INVENTORY -------- Protomatter Experimental Sensor Array Hacking Suite [Rating: 28] Favorites ----------- Power Light Ion Engine Engine Light Ion Engine Power Core Light Nuclear Core Propulsion Flight Unit Flight Unit Flight Unit Utility Signal Interpreter Device PSU Rigger Processor Signal Interpreter Weapon Grenade Launcher Ballistic Gun Assault Rifle Launcher Grenade Launcher Impact Weapon Mace Slashing Weapon Mining Claw Build | -11 -10 -10 -10 ------- Run | Scr Mat Min Exi Slots Evolved 3 | . 1 . 2 Power . | . . . . Propulsion . | . . . . Utility 2 | . . . 2 Weapon 1 | . 1 . . Parts Attached 14 | 2 7 1 4 Power 3 | 1 1 1 . Engine 2 | 1 1 . . Core 1 | . . 1 . Reactor . | . . . . Propulsion 1 | . 1 . . Treads . | . . . . Leg . | . . . . Wheel . | . . . . Hover . | . . . . Flight 1 | . 1 . . Utility 5 | . 1 . 4 Device 2 | . . . 2 Storage . | . . . . Processor 3 | . 1 . 2 Hackware . | . . . . Protection . | . . . . Artifact . | . . . . Weapon 5 | 1 4 . . Energy Gun . | . . . . Energy Cannon . | . . . . Ballistic Gun 1 | 1 . . . Ballistic Cannon . | . . . . Launcher 2 | . 2 . . Special Weapon . | . . . . Impact Weapon 1 | . 1 . . Slashing Weapon 1 | . 1 . . Piercing Weapon . | . . . . Special Melee Weapon . | . . . . Unidentified Prototypes 3 | . . . 3 Parts Lost 1 | . . . 1 Power . | . . . . Propulsion . | . . . . Utility . | . . . . Weapon 1 | . . . 1 Highest Loss Streak 1 | . . . 1 Average Slot Usage (%) 94 | . 87 100 99 Engine 10 | . 19 6 . Core 8 | . . 13 16 Flight 16 | . 14 20 16 Device 2 | . . . 7 Processor 18 | . 15 20 24 Ballistic Gun 2 | . 4 . . Launcher 18 | . 19 20 16 Impact Weapon 11 | . 4 20 16 Slashing Weapon 4 | . 10 . . Naked Turns . | . . . . Heaviest Build 12 | 5 8 10 12 Greatest Support 14 | 8 9 14 14 Greatest Overweight (x) . | . . . . Average Overweight (x) . | . . . . Largest Inventory Capacity 3 | 2 2 3 3 Average Capacity 2 | 1 2 2 3 Most Carried 3 | . 2 3 3 Average Carried 1 | . . 2 2 Final Capacity 3 | 2 2 3 3 Final Carried 3 | . 2 3 3 Class Distribution -------------------- 100% | Mutant Dominant Class ---------------- Mutant | -10/Materials Mutant | -10/Mines Mutant | -10/Exiles Resources | -11 -10 -10 -10 ----------- Run | Scr Mat Min Exi Matter Collected 426 | 220 181 20 5 Remotely . | . . . . Salvage Created 1111 | . 721 364 26 Parts 46 | . 39 6 1 Haulers Intercepted 1 | . 1 . . Recyclers Shooed 2 | . . 2 . Parts Field Recycled . | . . . . Retrieved Matter . | . . . . Parts Self-Destructed . | . . . . Prevented . | . . . . Kills | -11 -10 -10 -10 ------- Run | Scr Mat Min Exi Combat Hostiles Destroyed 25 | . 14 4 7 Melee 8 | . 7 1 . Guns 3 | . 3 . . AOE 11 | . 2 2 7 Classes Destroyed 7 | . 5 . 2 Hauler 1 | . 1 . . Recycler 5 | . 3 2 . Operator 2 | . 2 . . Watcher 3 | . 3 . . Grunt 18 | . 14 4 . Zionite 1 | . . . 1 Assembled 7 | . . . 7 Best Kill Streak 5 | . 4 3 5 Combat Bots Only 4 | . 2 2 4 Max Kills in Single Turn 3 | . 3 2 2 Gunslinging . | . . . . Exploded 2 | . 2 2 2 Melee 1 | . 1 1 . Uniques/NPCs Destroyed . | . . . . Combat | -11 -10 -10 -10 -------- Run | Scr Mat Min Exi Damage Taken 2166 | . 1032 292 842 Core 1817 | . 857 251 709 Absorbed by Shields . | . . . . Redirected to Core 1130 | . 580 135 415 Core Remaining (%) 100 | 100 . . . Volleys Fired 42 | . 30 1 11 Largest 1 | . 1 1 1 Hottest 30 | . 30 30 30 Shots Fired 42 | . 30 1 11 Gun 27 | . 27 . . Cannon . | . . . . Launcher 15 | . 3 1 11 Special . | . . . . Kinetic 27 | . 27 . . Thermal . | . . . . Explosive 15 | . 3 1 11 Electromagnetic . | . . . . Robot Hit Streak 7 | . 4 . 7 Robot Miss Streak 5 | . 2 2 5 Penetration Max . | . . . . Secondary Targets . | . . . . Shots Hit Robots 127 | . 85 27 15 Core Hits 48 | . 28 5 15 Critical Hits 1 | . 1 . . Critical Kills 1 | . 1 . . Critical Parts Destroyed . | . . . . Melee Attacks 120 | . 84 28 8 Impact 59 | . 23 28 8 Slashing 61 | . 61 . . Piercing . | . . . . Sneak Attacks 6 | . 4 2 . Combat Hostiles . | . . . . Follow-up Attacks . | . . . . Damage Inflicted 3853 | . 2305 866 682 Guns 221 | . 221 . . Cannons . | . . . . Explosions 889 | . 294 138 457 Melee 2743 | . 1790 728 225 Ramming . | . . . . Kinetic 221 | . 221 . . Thermal . | . . . . Explosive 889 | . 294 138 457 Electromagnetic . | . . . . Impact 1424 | . 471 728 225 Slashing 1319 | . 1319 . . Piercing . | . . . . Highest Corruption . | . . . . Average Corruption . | . . . . Corruption Purged . | . . . . Overload Shots . | . . . . Overflow Damage 429 | . 266 142 21 Projectiles . | . . . . Explosions 10 | . 10 . . Melee 419 | . 256 142 21 Knockbacks 8 | . 1 6 1 Impact 8 | . 1 6 1 Kinetic . | . . . . Secondary . | . . . . Self-Inflicted Damage 69 | . 40 . 29 Shots 2 | . 1 . 1 Rammed . | . . . . Targets Rammed . | . . . . Kicked . | . . . . Crushed . | . . . . Highest Temperature 13 | . 5 . 13 Average Temperature 6 | . 3 . 7 Received Heat Transfer 663 | . 498 165 . Siege Activations . | . . . . Robots Corrupted . | . . . . Combat Hostiles . | . . . . Parts Fried 7 | . 3 4 . Impact Corruptions 13 | . 5 7 1 Robots Melted . | . . . . Combat Hostiles . | . . . . Parts Melted . | . . . . Heat Transferred . | . . . . Parts Sabotaged . | . . . . Parts Stolen . | . . . . Parts Stripped . | . . . . Power Chain Reactions . | . . . . Missiles Intercepted . | . . . . Alert | -11 -10 -10 -10 ------- Run | Scr Mat Min Exi Peak Influence 515 | . 515 503 . Average Influence 304 | . 273 363 . Maximum Alert Level 2 | . 2 2 . Low Security (%) 32 | 100 39 20 . Level 1 31 | . 29 35 . Level 2 35 | . 31 43 . Level 3 . | . . . . Level 4 . | . . . . Level 5 . | . . . . High Security . | . . . . Max Security . | . . . . Squads Dispatched 4 | . 4 . . Investigation 2 | . 2 . . Extermination . | . . . . Reinforcement 2 | . 2 . . Assault . | . . . . Garrison . | . . . . Intercept . | . . . . Construction Impeded . | . . . . Haulers Reinforced . | . . . . Stealth | -11 -10 -10 -10 --------- Run | Scr Mat Min Exi Distress Signals 1 | . 1 . . Communications Jammed . | . . . . Distress Signals . | . . . . Times Spotted 48 | . 26 14 8 Peak Tracking Total 11 | . 6 4 11 Tactical Retreats 4 | . 2 1 1 Traps | -11 -10 -10 -10 ------- Run | Scr Mat Min Exi Traps Triggered . | . . . . Indirectly . | . . . . Trap Hack Attempts . | . . . . Triggered . | . . . . Disarmed . | . . . . Reprogrammed . | . . . . Reused . | . . . . Traps Extracted . | . . . . Installed . | . . . . Triggered . | . . . . Machines | -11 -10 -10 -10 ---------- Run | Scr Mat Min Exi Machines Disabled 5 | . 1 . 4 Max in Single Turn 2 | . 1 . 2 Machines Sabotaged . | . . . . Garrisons Compromised . | . . . . Overloaded Fab Kills . | . . . . Fab Network Shutdowns . | . . . . Hacking | -11 -10 -10 -10 --------- Run | Scr Mat Min Exi Machines Accessed 12 | . 8 . 4 Terminals 5 | . 5 . . Fabricators . | . . . . Repair Stations 1 | . 1 . . Recycling Units 2 | . 2 . . Scanalyzers . | . . . . Garrison Access . | . . . . Total Hacks 80 | . 32 . 48 Successful 67 | . 19 . 48 Failed 13 | . 13 . . Catastrophic . | . . . . Database Lockouts . | . . . . Manual 29 | . 28 . 1 Terminals 18 | . 18 . . Fabricators . | . . . . Repair Stations 4 | . 4 . . Recycling Units 10 | . 10 . . Scanalyzers . | . . . . Garrison Access . | . . . . Terminal Hacks 49 | . 1 . 48 Record 48 | . . . 48 Hauler Manifests 1 | . 1 . . Fabricator Hacks . | . . . . Repair Station Hacks 2 | . 2 . . Scan Component 1 | . 1 . . Repair 1 | . 1 . . Recycling Unit Hacks 2 | . 2 . . Report Inventory 2 | . 2 . . Scanalyzer . | . . . . Garrison Access Hacks . | . . . . Unauthorized Hacks 41 | . 41 . . Terminals 9 | . 9 . . Track 2 | . 2 . . Assimilate 1 | . 1 . . Botnet 4 | . 4 . . Operators 2 | . 2 . . Fabricators . | . . . . Repair Stations 1 | . 1 . . Mechanics 1 | . 1 . . Recycling Units 4 | . 4 . . Monitor 1 | . 1 . . Reject 1 | . 1 . . Recyclers 1 | . 1 . . Tunnel 1 | . 1 . . Scanalyzers . | . . . . Garrison Access . | . . . . Data Cores Recovered . | . . . . Used . | . . . . Hacking Detections 7 | . 7 . . Full Trace Events 2 | . 2 . . Feedback Events . | . . . . Feedback Blocked . | . . . . Robot Schematics Acquired . | . . . . Robots Built . | . . . . Matter . | . . . . Time . | . . . . Total Robot Build Rating . | . . . . Part Schematics Acquired . | . . . . Parts Built . | . . . . Matter . | . . . . Time . | . . . . Total Part Build Rating . | . . . . Parts Repaired 1 | . 1 . . Time 26 | . 26 . . Parts Recycled . | . . . . Recycled Matter . | . . . . Retrieved Matter . | . . . . Retrieved Components . | . . . . Parts Scanalyzed . | . . . . Part Schematics Acquired . | . . . . Parts Damaged . | . . . . Bothacking | -11 -10 -10 -10 ------------ Run | Scr Mat Min Exi Used RIF Installer . | . . . . Robots Hacked . | . . . . Non-combat . | . . . . Combat . | . . . . Robot Hacks Applied . | . . . . Relay Couplers Released . | . . . . Robots Rewired . | . . . . Allies Hacked . | . . . . Hacks Repelled . | . . . . Allies | -11 -10 -10 -10 -------- Run | Scr Mat Min Exi Total Allies 5 | . . 5 . Largest Group 5 | . . 5 4 Highest-Rated Group 84 | . . 84 68 Highest-Rated Ally 31 | . . 31 31 Total Orders . | . . . . Ally Attacks 47 | . . 46 1 Total Damage 575 | . . 562 13 Kills 6 | . . 6 . Allies Corrupted . | . . . . Allies Melted . | . . . . Intel | -11 -10 -10 -10 ------- Run | Scr Mat Min Exi Robot Analysis Total . | . . . . Derelict Logs Recovered 1 | . . 1 . Drone Launches . | . . . . Drone Recoveries . | . . . . Exploration | -11 -10 -10 -10 ------------- Run | Scr Mat Min Exi Turns Passed 2112 | 15 959 585 553 Spaces Moved 3174 | 24 1174 805 1171 Core 224 | 24 200 . . Treads . | . . . . Legs . | . . . . Wheels . | . . . . Hover . | . . . . Flight 2950 | . 974 805 1171 Fastest Speed 40 | 50 40 40 40 Average Speed 40 | 50 41 40 40 Slowest Speed 50 | 50 50 40 40 Overloaded Moves . | . . . . Propulsion Burnouts . | . . . . Robots Hopped 16 | . 9 7 . Cave-ins Triggered 1 | . 1 . . Exploration Rate (%) 73 | 4 99 98 94 Regions Visited 3 Branch Regions 2 Pre-discovered Areas 2 | . 1 . 1 Known Exits Taken 2 | . 1 1 . Unknown Exits Taken 1 | 1 . . . Scrap Searched 1 | . . 1 . Spaces Dug . | . . . . Terrain Destroyed 37 | . 21 9 7 Melee . | . . . . Projectile . | . . . . AOE 37 | . 21 9 7 Actions | -11 -10 -10 -10 --------- Run | Scr Mat Min Exi Total 3725 | 25 1447 1017 1236 Wait 300 | . 112 164 24 Move 3141 | 23 1157 790 1171 Hop 14 | . 7 7 . Pick Up 14 | . 6 2 6 Fast Attach 13 | 2 6 1 4 Attach . | . . . . Detach . | . . . . Swap 1 | . 1 . . Drop 17 | . 7 2 8 Fire 42 | . 30 1 11 Melee 120 | . 84 28 8 Ram . | . . . . Kick . | . . . . Crush . | . . . . Escape Stasis . | . . . . Rewire . | . . . . Trap . | . . . . Miscellaneous 63 | . 37 22 4 Route ------- -11/Scrapyard -10/Materials (discovered 4 exits: *Mat x3 / *Min) -10/Mines (discovered 3 exits: *Mat x2 / *Exi) -10/Exiles (discovered 2 exits: *Min x2) History --------- Turn | Location | Event 2 | -11/Scrapyard | Met Revision 17 5 | -11/Scrapyard | Discovered new exit (range 16) 16 | -11/Scrapyard | Entered Materials 18 | -10/Materials | Upgraded with Weapon slot (x1) 274 | -10/Materials | Discovered new exit (range 10) 313 | -10/Materials | Build established: Mutant 321 | -10/Materials | Crushed by falling debris 442 | -10/Materials | Identified exit to Materials 565 | -10/Materials | Discovered exit to Materials (range 3) 615 | -10/Materials | Core integrity fell below 50% 704 | -10/Materials | Reached level 2 709 | -10/Materials | Discovered exit to Materials (range 12) 789 | -10/Materials | Discovered new exit (range 16) 795 | -10/Materials | Identified exit to Mines 804 | -10/Materials | Repaired Lgt. Ion Engine? 975 | -10/Materials | Entered Mines 982 | -10/Mines | Met a Derelict bent on vengeance 1009 | -10/Mines | Assisted by bots powering up and referring to "LRC-V3" 1099 | -10/Mines | Reached level 3 1208 | -10/Mines | Deemed a non-threat by the Exiles lab entrance 1208 | -10/Mines | Discovered new exit (range 5) 1210 | -10/Mines | Identified exit to Exiles 1214 | -10/Mines | Discovered exit to Materials (range 6) 1236 | -10/Mines | Learned Materials security intel 1245 | -10/Mines | Discovered exit to Materials (range 10) 1329 | -10/Mines | Found a damaged Exp. Sensor Array with a note attached 1331 | -10/Mines | Found Prototype Device 1384 | -10/Mines | Joined a pair of Derelicts in attacking an 0b10 outpost 1560 | -10/Mines | Entered Exiles 1560 | -10/Exiles | Accompanied by 4 allies 1562 | -10/Exiles | Reached level 4 1578 | -10/Exiles | Discovered new exit (range 14) 1582 | -10/Exiles | Identified exit to Mines 1590 | -10/Exiles | Led the pair of lost Derelicts to a safe place 1600 | -10/Exiles | Met 8R-AWN 1617 | -10/Exiles | Met EX-HEX 1641 | -10/Exiles | Met EX-DEC 1651 | -10/Exiles | Visited The Gauntlet 1719 | -10/Exiles | Discovered exit to Mines (range 11) 1739 | -10/Exiles | Learned location of Zion (-6) 1753 | -10/Exiles | Met EX-BIN 1794 | -10/Exiles | Aligned with FarCom system 1794 | -10/Exiles | Given EX-Vault access code 1803 | -10/Exiles | Opened EX-Vault 1805 | -10/Exiles | Upgraded with Utility slot (x1) 1805 | -10/Exiles | Found Prototype Device 1805 | -10/Exiles | Identified PSU Rigger 1808 | -10/Exiles | Found Prototype Processor 1808 | -10/Exiles | Identified Modified TNC 1811 | -10/Exiles | Found Prototype Processor 1811 | -10/Exiles | Identified 0b10 Alert Chip 1814 | -10/Exiles | Upgraded with Utility slot (x1) 1823 | -10/Exiles | Warned to stay clear of 0b10 Research branches 2047 | -10/Exiles | Attacked by the Exiles 2099 | -10/Exiles | Core integrity fell below 20% 2113 | -10/Exiles | Destroyed by 8R-AWN with 8R-AWN's Boregun Last Messages --------------- 02096_ HV Slug penetrates Machine. 02098_ Penetrated by HV Slug. 02104_ Critical hit. 02104_ Grenade Launcher destroyed. 02104_ HV Slug penetrates Wall. 02104_ HV Slug penetrates Machine. 02106_ Penetrated by HV Slug. 02106_ HV Slug penetrates Machine. 02106_ Penetrated by HV Slug. 02106_ HV Slug penetrates Machine. 02108_ HV Slug penetrates Earth. 02108_ Penetrated by HV Slug. 02108_ HV Slug penetrates Wall. 02108_ Machine disabled. 02109_ 8R-AWN knocked back. 02111_ HV Slug penetrates Earth. 02111_ HV Slug penetrates Wall. 02113_ Penetrated by HV Slug. 02113_ HV Slug penetrates Wall. 02113_ Penetrated by HV Slug. Map ----- +----------------------------------------------------+ | ??????"" #???#" """"#??????????????????? | | ???????###???#" """#??????????????????? | | ?????????????#" """#??????????????????? | | ?????????????#" """#??????????????????? | | ######???????#" """#??????????????????? | | """#???????#" """##?????????????????? | | " """#???????## """""?????????????????? | | " #????????# """##?????????????????? | | " #????????#" "X" """""?????????????????? | | " "#????????#" """ #??????????????????? | | ""#????????#" """""""""#??????????????????? | | " ""#???????## ###########??????????????????? | | # ###?#????##"" #????????????????????????????? | | # ###?#"#### " #????????????????????????????? | | # #"### """ ##???????????????????????????? | | """ "" ##???###########????????????? | | "" #####"""""""""##???????????? | | " """ """"##??????????? | | % "" " #??????????? | | * " """#??????????? | | "a"#??????????? | | " "##?????????# | | ""###???????# | | """"" """#??????## | | ######" g "#????### | | ""##????##### @ ##???# | | """##?????????# ##?## | | """##??????????# ### | | ""#????????##### | | ########### # " | | ## ## [% "" | | " #"""# | | % ###### | | ##????? | | = ##?????? | | * ""#??????? | | ""## ## "" " " "##??????? | | ""#### ######""" """##"""""""##???????? | | """"##??# #????###""""###########????????? | | """#??## ####???######??????????????????? | | ""##??#! "!#???????????????????????????? | | """##???#" !#???????????????????????????? | | ##????#" "#???????????????????????????? | | ##?????#!!""!"#???????????????????????????? | | #??????########???????????????????????????? | | ## ##?????????????????????????????????????????? | | ?## #??????????????????????????????????????????? | | ??# #??????????????????????????????????????????? | | ??# #??????????????????????????????????????????? | | ??# #??????????????????????????????????????????? | +----------------------------------------------------+ Best States ------------- Heat Dissipation 25 Energy Generation 14 Energy Capacity 160 Matter Stores 300 Matter Capacity 300 Sight Range 16 Robot Scan Range 12 Terrain Scan Density 10 Evasion (%) 62 Item Schematics ----------------- None Robot Schematics ------------------ None Fabricated ------------ Nothing Alien Tech Used ----------------- None Achievements -------------- None Challenges ------------ None RPGLIKE | -11 -10 -10 -10 --------- Run | Scr Mat Min Exi Levels Raised 3 | . 1 1 1 XP Earned 7757 | 3000 2136 2271 350 XP Spent 5575 | 1525 1400 1350 1300 Upgrades 17 | 9 4 2 2 Utility Slot 2 | . . . 2 Weapon Slot 1 | . 1 . . Mass Support 2 | 1 . 1 . Inventory Capacity 3 | 2 . 1 . Sensor Range 6 | 6 . . . Melee Accuracy 3 | . 3 . . Protomatter Created 260 | . 259 . 1 Integrity Restored 1335 | . 775 464 96 Core 1204 | . 735 373 96 Parts 131 | . 40 91 . Protomatter Decayed 79 | . 48 . 31 Game ------ Seed BottomlessSeismicWarhead Manual? 0 Play Time 00:36:48 Cumulative 453.9 hours Start 2020.01.15 @ 00:53:12 End 2020.01.15 @ 01:31:13 Sessions 1 Manual Loads 0 Difficulty Rogue Special Mode Winter2019/RPGLIKE Game No. 134 Rogue 134 Adventurer 0 Explorer 0 Win Type - Total 1 Types 1/0/0/0/0/0/0 Lore% 69 Gallery% 76 Achievement% 49 Wizard Run 0 Options --------- ASCII 0 Keyboard 0 Movement Arrows Keybinds 0 Fullscreen 1 Font 12/Smallcaps Map View 83x54 Tactical HUD 1 Map Filters NONE Filters NONE Steam 1 RUN: df32c4e2-924f-4128-8422-129b843cac58